fUST/lending_fUST_20250313
["ID","MTS","AMOUNT","RATE_DAILY","PERIOD"]
[356018925,1741801846638,-500.0,0.00022191,2]
[356018926,1741801846647,-500.0,0.00022191,2]
[356018927,1741801846656,-500.0,0.00022191,2]
[356018928,1741801846665,-558.87,0.00022191,2]
[356018929,1741801846674,-500.0,0.00022191,2]
[356018930,1741801846683,-151.0,0.00022191,7]
[356018931,1741801846692,-151.0,0.00022191,7]
[356018932,1741801846701,-151.0,0.00022191,7]
[356018933,1741801846711,-151.0,0.00022191,7]
[356018934,1741801846721,-151.0,0.00022191,7]
[356018935,1741801846730,-151.0,0.00022191,7]
[356018936,1741801846739,-151.0,0.00022191,7]
[356018937,1741801846748,-151.0,0.00022191,7]
[356018938,1741801846758,-500.0,0.00022191,2]
[356018939,1741801846770,-500.0,0.00022191,2]
[356018940,1741801846780,-151.0,0.00022191,7]
[356018941,1741801846790,-151.0,0.00022191,7]
[356018942,1741801846799,-151.0,0.00022191,7]
[356018943,1741801846809,-171.00957,0.00022191,7]
[356018944,1741801846819,-151.0,0.00022191,7]
[356018945,1741801846828,-151.0,0.00022191,7]
[356018946,1741801846838,-151.0,0.00022191,7]
[356018947,1741801846848,-151.0,0.00022191,7]
[356018948,1741801846859,-500.0,0.00022191,2]
[356018949,1741801846868,-500.0,0.00022191,2]
[356018950,1741801846878,-500.0,0.00022191,2]
[356018951,1741801846887,-500.0,0.00022191,2]
[356018952,1741801846897,-335.04563205,0.00022191,2]
[356018953,1741801846906,-500.0,0.00022191,2]
[356018954,1741801846916,-500.0,0.00022191,2]
[356018955,1741801846926,-500.0,0.00022191,2]
[356018956,1741801846935,-500.0,0.00022191,2]
[356018957,1741801846945,-500.0,0.00022191,2]
[356018958,1741801846955,-500.0,0.00022191,2]
[356018959,1741801846965,-500.0,0.00022191,2]
[356018960,1741801846975,-515.47303822,0.00022191,2]
[356018961,1741801846985,-500.0,0.00022191,2]
[356018962,1741801846994,-151.0,0.00022191,7]
[356018963,1741801847004,-162.426686,0.00022191,7]
[356018964,1741801847014,-204.931869,0.00022191,7]
[356018965,1741801847024,-204.931869,0.00022191,7]
[356018966,1741801847034,-204.931869,0.00022191,7]
[356018967,1741801847045,-500.0,0.00022191,2]
[356018968,1741801847054,-204.931869,0.00022191,7]
[356018969,1741801847064,-204.931869,0.00022191,7]
[356018970,1741801847077,-204.931869,0.00022191,7]
[356018971,1741801847086,-204.931869,0.00022191,7]
[356018972,1741801847096,-204.931869,0.00022191,7]
[356018973,1741801847105,-500.0,0.00022191,2]
[356018974,1741801847114,-839.09,0.00022191,2]
[356018975,1741801847124,-500.0,0.00022191,2]
[356018976,1741801847133,-500.0,0.00022191,2]
[356018977,1741801847142,-335.133307,0.00022191,7]
[356018978,1741801847152,-335.133307,0.00022191,7]
[356018979,1741801847161,-500.0,0.00022191,2]
[356018980,1741801847170,-335.133307,0.00022191,7]
[356018981,1741801847180,-335.133307,0.00022191,7]
[356018982,1741801847190,-335.133307,0.00022191,7]
[356018983,1741801847201,-335.133307,0.00022191,7]
[356018984,1741801847211,-335.133307,0.00022191,7]
[356018985,1741801847222,-500.0,0.00022191,2]
[356018986,1741801847231,-335.133307,0.00022191,7]
[356018987,1741801847240,-500.0,0.00022191,2]
[356018988,1741801847250,-500.0,0.00022191,2]
[356018989,1741801847261,-500.0,0.00022191,2]
[356018990,1741801847270,-151.0,0.00022191,7]
[356018991,1741801847283,-151.0,0.00022191,7]
[356018992,1741801847292,-237.533866,0.00022191,7]
[356018993,1741801847301,-500.0,0.00022191,2]
[356018994,1741801847311,-500.0,0.00022191,2]
[356018995,1741801847321,-500.0,0.00022191,2]
[356018996,1741801847330,-500.0,0.00022191,2]
[356018997,1741801847340,-500.0,0.00022191,2]
[356018998,1741801847349,-500.0,0.00022191,2]
[356018999,1741801847359,-500.0,0.00022191,2]
[356019000,1741801847368,-500.0,0.00022191,2]
[356019001,1741801847377,-500.0,0.00022191,2]
[356019002,1741801847387,-500.0,0.00022191,2]
[356019003,1741801847396,-151.0,0.00022191,7]
[356019004,1741801847406,-151.0,0.00022191,7]
[356019005,1741801847415,-151.0,0.00022191,7]
[356019006,1741801847424,-151.0,0.00022191,7]
[356019007,1741801847437,-917.47,0.00022191,2]
[356019008,1741801847452,-500.0,0.00022191,2]
[356019009,1741801847465,-239.42349852,0.00022191,2]
[356019010,1741801847480,-500.0,0.00022191,2]
[356019011,1741801847490,-1375.22,0.00022191,2]
[356019012,1741801847503,-598.68595098,0.00022191,2]
[356019013,1741801847516,-500.0,0.00022191,2]
[356019014,1741801847528,-500.0,0.00022191,2]
[356019015,1741801847541,-500.0,0.00022191,2]
[356019016,1741801847555,-500.0,0.00022191,2]
[356019017,1741801847567,-500.0,0.00022191,2]
[356019018,1741801847582,-500.0,0.00022191,2]
[356019019,1741801847595,-500.0,0.00022191,2]
[356019020,1741801847608,-500.0,0.00022191,2]
[356019021,1741801847621,-151.0,0.00022191,7]
[356019022,1741801847633,-151.0,0.00022191,7]
[356019023,1741801847644,-151.0,0.00022191,7]
[356019024,1741801847658,-151.0,0.00022191,7]
[356019025,1741801847671,-151.0,0.00022191,7]
[356019026,1741801847683,-151.0,0.00022191,7]
[356019027,1741801847694,-151.0,0.00022191,7]
[356019028,1741801847704,-151.0,0.00022191,7]
[356019029,1741801847717,-911.67,0.00022191,2]
[356019030,1741801847729,-500.0,0.00022191,2]
[356019031,1741801847742,-500.0,0.00022191,2]
[356019032,1741801847757,-500.0,0.00022191,2]
[356019033,1741801847770,-500.0,0.00022191,2]
[356019034,1741801847784,-500.0,0.00022191,2]
[356019035,1741801847797,-274.44098617,0.00022191,2]
[356019036,1741801847813,-500.0,0.00022191,2]
[356019037,1741801847826,-500.0,0.00022191,2]
[356019038,1741801847836,-500.0,0.00022191,2]
[356019039,1741801847847,-500.0,0.00022191,2]
[356019040,1741801847858,-161.492389,0.00022191,7]
[356019041,1741801847870,-161.492389,0.00022191,7]
[356019042,1741801847884,-500.0,0.00022191,2]
[356019043,1741801847897,-161.492389,0.00022191,7]
[356019044,1741801847908,-161.492389,0.00022191,7]
[356019045,1741801847919,-500.0,0.00022191,2]
[356019046,1741801847931,-835.97,0.00022191,2]
[356019047,1741801847945,-161.492389,0.00022191,7]
[356019048,1741801847956,-161.492389,0.00022191,7]
[356019049,1741801847967,-500.0,0.00022191,2]
[356019050,1741801847977,-161.492389,0.00022191,7]
[356019051,1741801847990,-161.492389,0.00022191,7]
[356019052,1741801848001,-172.485941,0.00022191,7]
[356019053,1741801848013,-15.81690278,0.00022191,7]
[356019054,1741801849029,-463.3,0.00021907,3]
[356019055,1741801849042,-156.66903822,0.00022191,7]
[356019056,1741801849054,-172.485941,0.00022191,7]
[356019057,1741801849066,-172.485941,0.00022191,7]
[356019058,1741801849078,-500.0,0.00022191,2]
[356019059,1741801849090,-172.485941,0.00022191,7]
[356019060,1741801849102,-172.485941,0.00022191,7]
[356019061,1741801849112,-846.78,0.00022191,2]
[356019062,1741801849122,-500.0,0.00022191,2]
[356019063,1741801849132,-172.485941,0.00022191,7]
[356019064,1741801849141,-172.485941,0.00022191,7]
[356019065,1741801849151,-1652.26,0.00022191,2]
[356019066,1741801849161,-500.0,0.00022191,2]
[356019067,1741801849171,-151.0,0.00022191,7]
[356019068,1741801849180,-538.33,0.00022191,2]
[356019069,1741801849508,-500.0,0.00022191,2]
[356019070,1741801849531,-152.384934,0.00022191,7]
[356019071,1741801849544,-151.0,0.00022191,7]
[356019072,1741801849564,-151.0,0.00022191,7]
[356019073,1741801849575,-151.0,0.00022191,7]
[356019074,1741801849585,-198.013907,0.00022191,7]
[356019075,1741801849595,-500.0,0.00022191,2]
[356019076,1741801849605,-500.0,0.00022191,2]
[356019077,1741801849615,-500.0,0.00022191,2]
[356019078,1741801849624,-500.0,0.00022191,2]
[356019079,1741801849634,-500.0,0.00022191,2]
[356019080,1741801849644,-500.0,0.00022191,2]
[356019081,1741801849654,-458.12472478,0.00022191,2]
[356019082,1741801887846,339.05,0.00018,2]
[356019083,1741802074275,305.14,0.00018,2]
[356019085,1741802261959,274.63,0.00018,2]
[356019086,1741802449156,247.16,0.00018,2]
[356019087,1741802635855,222.45,0.00018,2]
[356019088,1741802667087,300.0,0.000179,7]
[356019090,1741802821759,200.2,0.00018,2]
[356019091,1741803007892,180.18,0.00018,2]
[356019113,1741803031873,-300.0,0.000194,8]
[356019114,1741803031882,-300.0,0.000209,9]
[356019115,1741803031892,-300.0,0.00021249,2]
[356019116,1741803031901,-500.0,0.0002125,2]
[356019117,1741803031910,-500.0,0.0002125,2]
[356019118,1741803031920,-500.0,0.0002125,2]
[356019119,1741803031929,-163.47946227,0.0002125,2]
[356019148,1741803037705,-336.52053773,0.0002125,2]
[356019149,1741803037715,-500.0,0.0002125,2]
[356019150,1741803037724,-500.0,0.0002125,2]
[356019151,1741803037734,-500.0,0.0002125,2]
[356019152,1741803037744,-632.99600459,0.0002125,2]
[356019153,1741803037754,-249.53810712,0.00021359,2]
[356019154,1741803037763,-247.50166102,0.0002158,2]
[356019155,1741803037773,-1880.0792763,0.0002158,2]
[356019156,1741803037782,-236.44,0.00021607,2]
[356019157,1741803037792,-338.17,0.00021607,3]
[356019159,1741803037801,-157.41203369,0.00021616,2]
[356019160,1741803037811,-365.62678642,0.00021616,2]
[356019161,1741803037820,-196.68309083,0.00021616,2]
[356019162,1741803037829,-500.0,0.00021616,2]
[356019163,1741803037839,-500.0,0.00021616,2]
[356019164,1741803037848,-500.0,0.00021616,2]
[356019165,1741803037857,-548.5731028,0.00021616,2]
[356019166,1741803037866,-500.0,0.00021616,2]
[356019167,1741803037876,-500.0,0.00021616,2]
[356019168,1741803037885,-500.0,0.00021616,2]
[356019169,1741803037894,-500.0,0.00021616,2]
[356019170,1741803037903,-500.0,0.00021616,2]
[356019171,1741803037912,-216.43428027,0.00021616,2]
[356019172,1741803037922,-222000.0,0.00021617,2]
[356019173,1741803037931,-800.0,0.000217,2]
[356019174,1741803037940,-800.0,0.000217,2]
[356019175,1741803037950,-800.0,0.000217,2]
[356019176,1741803037959,-800.0,0.000217,2]
[356019177,1741803037968,-800.0,0.000217,2]
[356019178,1741803037978,-800.0,0.000217,2]
[356019179,1741803037987,-247.50166098,0.00021708,2]
[356019180,1741803037997,-5132.5661978,0.00021747,2]
[356019181,1741803038006,-199.99,0.00021798,2]
[356019182,1741803038016,-800.0,0.00021798,2]
[356019183,1741803038025,-199.99,0.00021798,2]
[356019184,1741803038035,-199.99,0.00021798,2]
[356019185,1741803038045,-800.0,0.00021798,2]
[356019186,1741803038054,-800.0,0.00021798,2]
[356019187,1741803038064,-729.71021274,0.00021806,2]
[356019188,1741803038074,-247.50166098,0.00021836,2]
[356019189,1741803038084,-800.0,0.00021896,2]
[356019190,1741803038093,-800.0,0.00021896,2]
[356019191,1741803038103,-399.93,0.00021896,2]
[356019192,1741803038112,-151.0,0.000219,3]
[356019193,1741803038122,-2007.24565676,0.000219,3]
[356019194,1741803038132,-302.0,0.00021904,2]
[356019195,1741803038142,-600.0,0.00021904,2]
[356019196,1741803038151,-174.150093,0.00021917,2]
[356019197,1741803038163,-174.150093,0.00021917,2]
[356019198,1741803038173,-174.150093,0.00021917,2]
[356019199,1741803038182,-174.150093,0.00021917,2]
[356019200,1741803038193,-514.82135152,0.00021917,2]
[356019201,1741803038204,-500.0,0.00021917,2]
[356019202,1741803038213,-500.0,0.00021917,2]
[356019203,1741803038223,-500.0,0.00021917,2]
[356019204,1741803038469,-500.0,0.00021917,5]
[356019205,1741803038479,-500.0,0.00021917,2]
[356019206,1741803038489,-500.0,0.00021917,2]
[356019207,1741803038498,-500.0,0.00021917,2]
[356019208,1741803038509,-500.0,0.00021917,2]
[356019209,1741803038519,-504.96513202,0.00021917,2]
[356019210,1741803038528,-500.0,0.00021917,2]
[356019211,1741803038538,-500.0,0.00021917,2]
[356019212,1741803038547,-500.0,0.00021917,2]
[356019213,1741803038557,-500.0,0.00021917,2]
[356019214,1741803038567,-500.0,0.00021917,2]
[356019215,1741803038576,-500.0,0.00021917,2]
[356019216,1741803038585,-623.93223261,0.00021917,2]
[356019217,1741803038595,-503.56992451,0.00021917,2]
[356019218,1741803038604,-500.0,0.00021917,2]
[356019219,1741803038613,-500.0,0.00021917,2]
[356019220,1741803038622,-500.0,0.00021917,2]
[356019221,1741803038631,-500.0,0.00021917,2]
[356019222,1741803038640,-500.0,0.00021917,2]
[356019223,1741803038649,-500.0,0.00021917,2]
[356019224,1741803038659,-500.0,0.00021917,2]
[356019225,1741803038668,-500.0,0.00021917,2]
[356019226,1741803038678,-400.03262399,0.00021917,2]
[356019227,1741803038687,-500.0,0.00021917,2]
[356019228,1741803038696,-501.29052873,0.00021917,2]
[356019229,1741803038705,-500.0,0.00021917,2]
[356019230,1741803038714,-504.77159601,0.00021917,2]
[356019231,1741803038723,-500.0,0.00021917,2]
[356019232,1741803038733,-500.0,0.00021917,2]
[356019233,1741803038743,-505.12944844,0.00021917,2]
[356019234,1741803038752,-500.0,0.00021917,2]
[356019235,1741803038764,-506.6040403,0.00021917,2]
[356019236,1741803038773,-500.0,0.00021917,2]
[356019237,1741803038782,-500.0,0.00021917,2]
[356019238,1741803038793,-502.00304415,0.00021917,2]
[356019239,1741803038803,-317.08529297,0.00021917,2]
[356019240,1741803038815,-500.0,0.00021917,2]
[356019241,1741803038824,-500.0,0.00021917,2]
[356019242,1741803038833,-204.1440205,0.00021917,2]
[356019243,1741803038843,-500.0,0.00021917,2]
[356019244,1741803038852,-500.0,0.00021917,2]
[356019245,1741803038861,-500.0,0.00021917,2]
[356019246,1741803038870,-500.90790766,0.00021917,2]
[356019247,1741803038879,-505.95873464,0.00021917,2]
[356019248,1741803038888,-225.70543005,0.00021917,2]
[356019249,1741803038899,-500.0,0.00021917,2]
[356019250,1741803038908,-500.0,0.00021917,2]
[356019251,1741803038918,-518.95376314,0.00021917,2]
[356019252,1741803038927,-500.0,0.00021917,2]
[356019253,1741803038937,-500.0,0.00021917,2]
[356019254,1741803038946,-500.0,0.00021917,2]
[356019255,1741803038956,-500.0,0.00021917,2]
[356019256,1741803038965,-500.0,0.00021917,2]
[356019257,1741803038975,-500.0,0.00021917,2]
[356019258,1741803038986,-512.23505407,0.00021917,2]
[356019259,1741803038996,-500.0,0.00021917,2]
[356019260,1741803039008,-500.0,0.00021917,2]
[356019261,1741803039018,-500.0,0.00021917,2]
[356019262,1741803039028,-500.0,0.00021917,2]
[356019263,1741803039037,-527.25,0.00021917,2]
[356019264,1741803039047,-500.0,0.00021917,2]
[356019265,1741803039056,-500.0,0.00021917,2]
[356019266,1741803039066,-500.0,0.00021917,2]
[356019267,1741803039075,-500.0,0.00021917,2]
[356019268,1741803039084,-552.28402071,0.00021917,2]
[356019269,1741803039094,-500.0,0.00021917,2]
[356019270,1741803039103,-500.0,0.00021917,2]
[356019271,1741803039112,-500.0,0.00021917,2]
[356019272,1741803039123,-500.0,0.00021917,2]
[356019273,1741803039132,-500.0,0.00021917,2]
[356019274,1741803039141,-500.0,0.00021917,2]
[356019275,1741803039152,-508.69685375,0.00021917,2]
[356019276,1741803039163,-421.31979836,0.00021917,2]
[356019277,1741803039173,-502.58766362,0.00021917,2]
[356019279,1741803039184,-500.0,0.00021917,2]
[356019281,1741803039194,-500.0,0.00021917,2]
[356019282,1741803039203,-500.0,0.00021917,2]
[356019284,1741803039212,-500.0,0.00021917,2]
[356019286,1741803039222,-503.17715585,0.00021917,2]
[356019288,1741803039232,-500.0,0.00021917,2]
[356019289,1741803039245,-500.0,0.00021917,2]
[356019291,1741803039256,-500.0,0.00021917,2]
[356019293,1741803039265,-500.0,0.00021917,2]
[356019294,1741803039274,-500.0,0.00021917,2]
[356019296,1741803039283,-500.0,0.00021917,2]
[356019298,1741803039293,-502.55512563,0.00021917,2]
[356019300,1741803039303,-501.08823221,0.00021917,2]
[356019301,1741803039312,-500.0,0.00021917,2]
[356019303,1741803039321,-510.64584715,0.00021917,2]
[356019305,1741803039331,-508.40729306,0.00021917,2]
[356019306,1741803039340,-501.57721571,0.00021917,2]
[356019308,1741803039350,-500.0,0.00021917,2]
[356019310,1741803039359,-500.0,0.00021917,2]
[356019312,1741803039369,-500.0,0.00021917,2]
[356019314,1741803039378,-500.0,0.00021917,2]
[356019315,1741803039388,-500.0,0.00021917,2]
[356019317,1741803039398,-500.0,0.00021917,2]
[356019320,1741803039407,-500.0,0.00021917,2]
[356019322,1741803039417,-500.0,0.00021917,2]
[356019323,1741803039427,-508.32868218,0.00021917,2]
[356019325,1741803039436,-511.82,0.00021917,2]
[356019326,1741803039445,-500.0,0.00021917,2]
[356019327,1741803039455,-504.06902287,0.00021917,2]
[356019328,1741803039464,-599.5,0.00021917,2]
[356019329,1741803039473,-500.0,0.00021917,2]
[356019330,1741803039483,-508.49755987,0.00021917,2]
[356019332,1741803039493,-632.72,0.00021917,2]
[356019335,1741803039502,-603.18,0.00021917,2]
[356019337,1741803039513,-500.0,0.00021917,2]
[356019339,1741803039522,-500.0,0.00021917,2]
[356019341,1741803039532,-500.0,0.00021917,2]
[356019343,1741803039541,-500.0,0.00021917,2]
[356019345,1741803039550,-500.0,0.00021917,2]
[356019347,1741803039560,-824.96,0.00021917,2]
[356019349,1741803039569,-502.24818389,0.00021917,2]
[356019351,1741803039578,-500.0,0.00021917,2]
[356019353,1741803039587,-500.0,0.00021917,2]
[356019355,1741803039596,-286.08046567,0.00021917,2]
[356019357,1741803039605,-500.0,0.00021917,2]
[356019359,1741803039614,-500.0,0.00021917,2]
[356019360,1741803039623,-500.0,0.00021917,2]
[356019362,1741803039632,-500.0,0.00021917,2]
[356019364,1741803039641,-510.37000107,0.00021917,2]
[356019366,1741803039650,-500.0,0.00021917,2]
[356019368,1741803039659,-500.0,0.00021917,2]
[356019370,1741803039669,-625.12,0.00021917,2]
[356019372,1741803039679,-500.0,0.00021917,2]
[356019374,1741803039688,-504.73056009,0.00021917,2]
[356019376,1741803039697,-313.66917543,0.00021917,2]
[356019378,1741803039706,-512.03991349,0.00021917,2]
[356019380,1741803039715,-500.0,0.00021917,2]
[356019381,1741803039724,-500.0,0.00021917,2]
[356019383,1741803039734,-500.0,0.00021917,2]
[356019385,1741803039743,-500.0,0.00021917,2]
[356019387,1741803039752,-428.4761151,0.00021917,2]
[356019389,1741803039763,-328.94604777,0.00021917,2]
[356019391,1741803039773,-500.0,0.00021917,2]
[356019393,1741803039782,-598.42,0.00021917,2]
[356019394,1741803039792,-500.0,0.00021917,2]
[356019396,1741803039801,-500.0,0.00021917,2]
[356019398,1741803039811,-620.10195141,0.00021917,2]
[356019400,1741803039820,-500.0,0.00021917,2]
[356019403,1741803039830,-500.0,0.00021917,2]
[356019405,1741803039840,-511.66569921,0.00021917,2]
[356019407,1741803039849,-500.0,0.00021917,2]
[356019410,1741803039859,-500.0,0.00021917,2]
[356019413,1741803039868,-500.0,0.00021917,2]
[356019415,1741803039878,-500.0,0.00021917,2]
[356019417,1741803039888,-775.01,0.00021917,2]
[356019419,1741803039897,-504.85020491,0.00021917,2]
[356019421,1741803039907,-500.0,0.00021917,2]
[356019423,1741803039916,-500.0,0.00021917,2]
[356019425,1741803039925,-500.0,0.00021917,2]
[356019427,1741803039935,-1015.78,0.00021917,2]
[356019430,1741803039944,-500.0,0.00021917,2]
[356019432,1741803039953,-500.0,0.00021917,2]
[356019434,1741803039963,-516.07149766,0.00021917,2]
[356019435,1741803039972,-500.0,0.00021917,2]
[356019438,1741803039981,-500.0,0.00021917,2]
[356019440,1741803039991,-500.0,0.00021917,2]
[356019443,1741803040000,-500.0,0.00021917,2]
[356019445,1741803040012,-500.0,0.00021917,2]
[356019447,1741803040022,-386.11062339,0.00021917,2]
[356019450,1741803040031,-500.0,0.00021917,2]
[356019452,1741803040041,-420.7765298,0.00021917,2]
[356019454,1741803040051,-500.0,0.00021917,2]
[356019456,1741803040060,-500.0,0.00021917,2]
[356019458,1741803040070,-500.0,0.00021917,2]
[356019460,1741803040079,-500.0,0.00021917,2]
[356019462,1741803040090,-500.0,0.00021917,2]
[356019464,1741803040099,-505.91168468,0.00021917,2]
[356019466,1741803040109,-500.0,0.00021917,2]
[356019468,1741803040119,-1457.49,0.00021917,2]
[356019470,1741803040128,-503.50906683,0.00021917,2]
[356019472,1741803040138,-500.0,0.00021917,2]
[356019474,1741803040147,-569.90006043,0.00021917,2]
[356019476,1741803040158,-500.0,0.00021917,2]
[356019478,1741803040169,-500.0,0.00021917,2]
[356019480,1741803040178,-500.0,0.00021917,2]
[356019482,1741803040188,-513.02273915,0.00021917,2]
[356019484,1741803040198,-500.0,0.00021917,2]
[356019486,1741803040208,-1620.15,0.00021917,2]
[356019488,1741803040217,-502.8315158,0.00021917,2]
[356019490,1741803040227,-581.01,0.00021917,2]
[356019492,1741803040238,-509.3799871,0.00021917,2]
[356019494,1741803040248,-500.0,0.00021917,2]
[356019496,1741803040259,-500.0,0.00021917,2]
[356019498,1741803040269,-500.0,0.00021917,2]
[356019500,1741803040280,-1636.45,0.00021917,2]
[356019502,1741803040290,-2393.9,0.00021917,2]
[356019504,1741803040299,-500.0,0.00021917,2]
[356019506,1741803040309,-907.13,0.00021917,2]
[356019508,1741803040319,-500.0,0.00021917,2]
[356019510,1741803040330,-500.0,0.00021917,2]
[356019512,1741803040339,-500.0,0.00021917,2]
[356019514,1741803040349,-1017.18,0.00021917,2]
[356019516,1741803040359,-506.45226536,0.00021917,2]
[356019518,1741803040368,-151.0,0.00021917,2]
[356019520,1741803040378,-500.0,0.00021917,2]
[356019521,1741803040387,-500.0,0.00021917,2]
[356019522,1741803040397,-151.0,0.00021917,2]
[356019523,1741803040406,-500.0,0.00021917,2]
[356019524,1741803040416,-494.64,0.00021917,2]
[356019525,1741803040426,-440.25150873,0.00021917,2]
[356019527,1741803040435,-151.0,0.00021917,2]
[356019529,1741803040444,-500.0,0.00021917,2]
[356019531,1741803040455,-500.0,0.00021917,2]
[356019533,1741803040464,-500.0,0.00021917,2]
[356019535,1741803040474,-500.0,0.00021917,2]
[356019537,1741803040483,-500.0,0.00021917,2]
[356019539,1741803040492,-500.0,0.00021917,2]
[356019541,1741803040502,-500.0,0.00021917,2]
[356019543,1741803040512,-161.402126,0.00021917,2]
[356019545,1741803040521,-500.0,0.00021917,2]
[356019547,1741803040531,-500.0,0.00021917,2]
[356019549,1741803040541,-500.0,0.00021917,2]
[356019551,1741803040550,-500.0,0.00021917,2]
[356019553,1741803040560,-500.85932994,0.00021917,2]
[356019555,1741803040569,-520.50517129,0.00021917,2]
[356019557,1741803040579,-500.0,0.00021917,2]
[356019559,1741803040588,-500.0,0.00021917,2]
[356019561,1741803040598,-500.0,0.00021917,2]
[356019563,1741803040608,-519.77981328,0.00021917,2]
[356019565,1741803040617,-500.0,0.00021917,2]
[356019567,1741803040627,-500.0,0.00021917,2]
[356019569,1741803040636,-500.0,0.00021917,2]
[356019571,1741803040646,-500.0,0.00021917,2]
[356019573,1741803040655,-500.0,0.00021917,2]
[356019575,1741803040665,-500.0,0.00021917,2]
[356019577,1741803040675,-151.0,0.00021917,2]
[356019579,1741803040684,-214.15718757,0.00021917,2]
[356019581,1741803040693,-500.0,0.00021917,2]
[356019584,1741803040710,-500.0,0.00021917,2]
[356019586,1741803040720,-500.0,0.00021917,2]
[356019588,1741803040729,-500.0,0.00021917,2]
[356019590,1741803040739,-994.72,0.00021917,2]
[356019592,1741803040748,-500.0,0.00021917,2]
[356019594,1741803040757,-500.0,0.00021917,2]
[356019596,1741803040767,-500.0,0.00021917,2]
[356019598,1741803040777,-500.0,0.00021917,2]
[356019600,1741803040786,-500.0,0.00021917,2]
[356019602,1741803040795,-516.74929057,0.00021917,2]
[356019604,1741803040805,-151.0,0.00021917,2]
[356019606,1741803040814,-500.0,0.00021917,2]
[356019607,1741803040823,-500.0,0.00021917,2]
[356019609,1741803040833,-520.06302295,0.00021917,2]
[356019611,1741803040842,-500.0,0.00021917,2]
[356019613,1741803040851,-513.8267618,0.00021917,2]
[356019615,1741803040861,-500.0,0.00021917,2]
[356019617,1741803040870,-500.0,0.00021917,2]
[356019619,1741803040880,-151.0,0.00021917,2]
[356019621,1741803040889,-500.0,0.00021917,2]
[356019623,1741803040899,-1090.97,0.00021917,2]
[356019625,1741803040908,-200.0,0.00021917,2]
[356019627,1741803040917,-1098.0,0.00021917,2]
[356019629,1741803040927,-270.48531029,0.00021917,2]
[356019631,1741803040936,-500.0,0.00021917,2]
[356019633,1741803040945,-500.0,0.00021917,2]
[356019635,1741803040954,-651.57,0.00021917,2]
[356019637,1741803040964,-500.0,0.00021917,2]
[356019639,1741803040973,-151.0,0.00021917,2]
[356019641,1741803040983,-500.0,0.00021917,2]
[356019644,1741803040994,-530.88,0.00021917,2]
[356019646,1741803041004,-500.0,0.00021917,2]
[356019648,1741803041015,-500.0,0.00021917,2]
[356019650,1741803041025,-500.0,0.00021917,2]
[356019652,1741803041035,-500.0,0.00021917,2]
[356019654,1741803041044,-500.0,0.00021917,2]
[356019656,1741803041053,-1126.13,0.00021917,2]
[356019658,1741803041063,-747.55,0.00021917,2]
[356019660,1741803041073,-500.0,0.00021917,2]
[356019662,1741803041082,-500.0,0.00021917,2]
[356019664,1741803041092,-404.180464,0.00021917,2]